[Event "elllobregat Open-A 2019"]
[Site "El Prat de Llobregat"]
[Date "2019.12.08"]
[Round "6.2"]
[White "Erigaisi Arjun"]
[Black "Puranik, Abhimanyu"]
[Result "1/2-1/2"]
[ECO "D85"]
[WhiteElo "2544"]
[BlackElo "2580"]
[Annotator "ChessBase"]
[PlyCount "105"]
[EventDate "2019.12.03"]
[EventType "swiss"]
[EventCountry "ESP"]
[SourceTitle "playchess.com"]
[Source "ChessBase"]
[SourceQuality "1"]
[TimeControl "40/5400+30:1800+30"]

1. Nf3 {[%emt 0:04:24]} Nf6 {[%emt 0:00:00]} 2. d4 {[%emt 0:00:06]} g6 {[%emt 0:00:00]} 3. c4 {[%emt 0:00:05]} Bg7 {[%emt 0:00:00]} 4. Nc3 {[%emt 0:00:06]} d5 {[%emt 0:00:00]} 5. cxd5 {[%emt 0:00:04]} Nxd5 {[%emt 0:00:01]} 6. e4 {[%emt 0:00:06]} Nxc3 {[%emt 0:00:05]} 7. bxc3 c5 {[%emt 0:00:39]} 8. Be3 {[%emt 0:00:10]} Qa5 {[%emt 0:00:57]} 9. Qd2 {[%emt 0:00:07]} O-O {[%emt 0:00:43]} 10. Rc1 {[%emt 0:03:38]} Nd7 {[%emt 0:02:22]} 11. d5 Rd8 12. c4 {[%emt 0:09:37]} Qxd2+ {[%emt 0:18:43]} 13. Kxd2 {[%emt 0:03:36]} b6 {[%emt 0:06:23]} 14. Bd3 {[%emt 0:01:37]} e6 {[%emt 0:06:49]} 15. Rhd1 {[%emt 0:15:39]} Ba6 16. a4 {[%emt 0:04:52]} Nf6 {[%emt 0:08:57]} 17. Ke2 {[%emt 0:01:48]} Re8 {[%emt 0:01:30]} 18. Kf1 {[%emt 0:00:59]} exd5 {[%emt 0:07:50]} 19. exd5 {[%emt 0:13:37]} Bc8 20. Re1 Bg4 {[%emt 0:13:42]} 21. Nd2 {[%emt 0:12:09]} Bd7 22. Bc2 {[%emt 0:00:49]} Ng4 {[%emt 0:09:46]} 23. Bf4 Bd4 {[%emt 0:12:12]} 24. Ne4 {[%emt 0:01:17]} Bf5 {[%emt 0:03:13]} 25. f3 {[%emt 0:00:00]} Bxe4 {[%emt 0:01:20]} 26. Bxe4 g5 {[%emt 0:04:12]} 27. fxg4 {[%emt 0:03:13]} gxf4 {[%emt 0:00:02]} 28. Bf5 Be5 {[%emt 0:01:48]} 29. Bd7 {[%emt 0:01:18]} Re7 {[%emt 0:00:07]} 30. Bc6 {[%emt 0:00:04]} Rd8 {[%emt 0:00:29]} 31. Rc2 {[%emt 0:00:43]} Bd6 {[%emt 0:02:51]} 32. Rxe7 {[%emt 0:01:04]} Bxe7 {[%emt 0:00:01]} 33. a5 {[%emt 0:00:23]} Bd6 {[%emt 0:01:04]} 34. axb6 axb6 35. Ra2 {[%emt 0:00:40]} Kg7 {[%emt 0:00:20]} 36. Ra7 {[%emt 0:00:28]} Kf6 {[%emt 0:00:35]} 37. Ke2 {[%emt 0:00:57]} h6 {[%emt 0:01:06]} 38. h4 {[%emt 0:01:04]} Be5 {[%emt 0:00:34]} 39. Kf3 {[%emt 0:00:36]} Bd6 40. Ke4 {[%emt 0:00:00]} Rg8 {[%emt 0:00:00]} 41. Bd7 {[%emt 0:09:32]} Rd8 {[%emt 0:08:01]} 42. Bc6 {[%emt 0:03:35]} Rc8 {[%emt 0:00:19]} 43. g5+ {[%emt 0:05:36]} hxg5 44. hxg5+ {[%emt 0:00:18]} Kxg5 {[%emt 0:11:16]} 45. Rxf7 Rc7 46. Rf5+ {[%emt 0:06:52]} Kg6 {[%emt 0:00:59]} 47. Be8+ {[%emt 0:02:20]} Kg7 {[%emt 0:00:06]} 48. Rg5+ {[%emt 0:01:24]} Kf8 {[%emt 0:01:03]} 49. Rg6 Re7+ {[%emt 0:01:15]} 50. Kf5 {[%emt 0:00:36]} Re5+ {[%emt 0:01:21]} 51. Kg4 {[%emt 0:00:08]} Ke7 {[%emt 0:00:30]} 52. Bb5 {[%emt 0:00:20]} Re3 {[%emt 0:04:02]} 53. Kf5 {[%emt 0:00:34]} 1/2-1/2

[Event "elllobregat Open-A 2019"]
[Site "El Prat de Llobregat"]
[Date "2019.12.08"]
[Round "6.3"]
[White "Zanan, Evgeny"]
[Black "Raja Rithvik R"]
[Result "1/2-1/2"]
[ECO "B90"]
[WhiteElo "2493"]
[BlackElo "2381"]
[Annotator "ChessBase"]
[PlyCount "91"]
[EventDate "2019.12.03"]
[EventType "swiss"]
[EventCountry "ESP"]
[SourceTitle "playchess.com"]
[Source "ChessBase"]
[SourceQuality "1"]
[TimeControl "40/5400+30:1800+30"]

1. e4 c5 2. Nf3 d6 3. d4 cxd4 4. Nxd4 Nf6 5. Nc3 a6 6. Bd3 e5 7. Nde2 Be7 8. O-O O-O 9. Ng3 Be6 10. Nd5 Nbd7 11. c4 Rc8 12. h3 Nc5 13. Bc2 b5 14. cxb5 axb5 15. f4 Ncd7 16. Nxe7+ Qxe7 17. Rf2 exf4 18. Bxf4 Rc6 19. Qd4 Ne5 20. Bg5 Qc7 21. Bxf6 Rxc2 22. Rxc2 Qxc2 23. Bxe5 dxe5 24. Qxe5 Qc6 25. a3 Rd8 26. Rf1 f6 27. Qf4 Qc2 28. Rf2 Qc5 29. Kh2 Rd1 30. Rf1 Qd6 31. Qxd6 Rxd6 32. Rf2 Rd3 33. Rc2 Rb3 34. Ne2 Bc4 35. Nc3 Kf7 36. a4 bxa4 37. Nxa4 Rb4 38. Nc5 Ke7 39. Rd2 Bb5 40. b3 Bc6 41. Rd3 Rb5 42. Rc3 Kd6 43. Ne6 Bxe4 44. Nxg7 Bg6 45. Rf3 Ke5 46. g4 1/2-1/2

[Event "elllobregat Open-A 2019"]
[Site "El Prat de Llobregat"]
[Date "2019.12.08"]
[Round "6.4"]
[White "Raja Harshit"]
[Black "Gagare, Shardul"]
[Result "1/2-1/2"]
[ECO "C07"]
[WhiteElo "2447"]
[BlackElo "2468"]
[Annotator "ChessBase"]
[PlyCount "78"]
[EventDate "2019.12.03"]
[EventType "swiss"]
[EventCountry "ESP"]
[SourceTitle "playchess.com"]
[Source "ChessBase"]
[SourceQuality "1"]
[TimeControl "40/5400+30:1800+30"]

1. e4 {[%emt 0:00:00]} e6 {[%emt 0:03:45]} 2. d4 {[%emt 0:00:00]} d5 {[%emt 0:00:05]} 3. Nd2 {[%emt 0:00:04]} c5 {[%emt 0:00:06]} 4. exd5 {[%emt 0:00:22]} Qxd5 {[%emt 0:00:06]} 5. Ngf3 {[%emt 0:00:09]} cxd4 {[%emt 0:00:07]} 6. Bc4 {[%emt 0:00:10]} Qd7 {[%emt 0:00:27]} 7. O-O {[%emt 0:01:39]} Nc6 {[%emt 0:00:06]} 8. Nb3 {[%emt 0:05:32]} a6 {[%emt 0:00:13]} 9. Nbxd4 {[%emt 0:01:53]} Nxd4 {[%emt 0:00:09]} 10. Nxd4 {[%emt 0:00:04]} Qc7 {[%emt 0:00:07]} 11. Bd3 {[%emt 0:05:55]} Bd6 {[%emt 0:00:41]} 12. h3 Ne7 {[%emt 0:10:23]} 13. Re1 {[%emt 0:08:04]} O-O {[%emt 0:02:39]} 14. Qh5 {[%emt 0:03:20]} Ng6 {[%emt 0:10:39]} 15. Nf3 {[%emt 0:02:03]} Qc5 {[%emt 0:13:57]} 16. Qg4 f5 {[%emt 0:18:31]} 17. Qc4 {[%emt 0:20:48]} b5 {[%emt 0:04:15]} 18. Qxc5 {[%emt 0:05:41]} Bxc5 {[%emt 0:00:37]} 19. Be3 {[%emt 0:23:34]} Bxe3 {[%emt 0:07:58]} 20. Rxe3 {[%emt 0:00:08]} Nf4 {[%emt 0:01:48]} 21. Bf1 {[%emt 0:00:43]} Bb7 {[%emt 0:09:02]} 22. c4 {[%emt 0:00:46]} bxc4 {[%emt 0:04:27]} 23. Bxc4 {[%emt 0:00:05]} Rf6 {[%emt 0:00:06]} 24. Kh2 {[%emt 0:07:34]} Bd5 {[%emt 0:06:36]} 25. Bxd5 Nxd5 {[%emt 0:00:17]} 26. Re2 {[%emt 0:03:15]} Rc8 {[%emt 0:00:38]} 27. Rae1 {[%emt 0:01:23]} h6 {[%emt 0:01:20]} 28. Rxe6 {[%emt 0:02:11]} Rxe6 {[%emt 0:00:10]} 29. Rxe6 {[%emt 0:00:04]} Rc2 {[%emt 0:00:05]} 30. Kg1 Rxb2 {[%emt 0:01:06]} 31. Rxa6 {[%emt 0:00:31]} Rb1+ {[%emt 0:01:27]} 32. Kh2 {[%emt 0:00:02]} Rb2 {[%emt 0:00:06]} 33. Ra5 {[%emt 0:04:32]} Nc3 {[%emt 0:00:05]} 34. Rxf5 {[%emt 0:03:20]} Rxa2 35. Ne5 Ne4 {[%emt 0:01:33]} 36. Nd3 {[%emt 0:02:27]} Rd2 {[%emt 0:00:58]} 37. Rf3 {[%emt 0:00:08]} Rd1 {[%emt 0:01:02]} 38. Nb2 {[%emt 0:01:47]} Rf1 {[%emt 0:00:53]} 39. Nd3 {[%emt 0:00:38]} Nd2 {[%emt 0:00:19]} 1/2-1/2

[Event "elllobregat Open-A 2019"]
[Site "El Prat de Llobregat"]
[Date "2019.12.08"]
[Round "6.5"]
[White "Karthik Venkataraman"]
[Black "Lagarde, Maxime"]
[Result "1-0"]
[ECO "B90"]
[WhiteElo "2470"]
[BlackElo "2655"]
[Annotator "ChessBase"]
[PlyCount "59"]
[EventDate "2019.12.03"]
[EventType "swiss"]
[EventCountry "ESP"]
[SourceTitle "playchess.com"]
[Source "ChessBase"]
[SourceQuality "1"]
[TimeControl "40/5400+30:1800+30"]

1. e4 {[%emt 0:00:06]} c5 {[%emt 0:06:54]} 2. Nf3 {[%emt 0:00:04]} d6 {[%emt 0:00:03]} 3. d4 {[%emt 0:00:07]} cxd4 {[%emt 0:00:04]} 4. Nxd4 {[%emt 0:00:04]} Nf6 {[%emt 0:00:02]} 5. Nc3 {[%emt 0:00:06]} a6 {[%emt 0:00:03]} 6. Bc4 {[%emt 0:00:37]} Nbd7 7. Be3 Qc7 {[%emt 0:13:48]} 8. Bb3 {[%emt 0:06:12]} Nb6 {[%emt 0:03:33]} 9. Qe2 {[%emt 0:04:05]} e5 10. Nf5 {[%emt 0:16:28]} Be6 {[%emt 0:04:46]} 11. Bg5 {[%emt 0:04:29]} Nbd7 {[%emt 0:21:22]} 12. O-O-O h6 {[%emt 0:01:53]} 13. Bh4 {[%emt 0:05:38]} Rc8 {[%emt 0:04:26]} 14. Kb1 {[%emt 0:02:25]} b5 15. Ne3 {[%emt 0:05:06]} Be7 {[%emt 0:03:08]} 16. Ncd5 {[%emt 0:06:04]} Bxd5 {[%emt 0:03:10]} 17. Bxd5 {[%emt 0:02:56]} Nb6 {[%emt 0:00:46]} 18. Bxf6 {[%emt 0:01:55]} Bxf6 19. Bb3 g6 {[%emt 0:05:24]} 20. h4 {[%emt 0:03:39]} h5 {[%emt 0:00:27]} 21. Qf3 {[%emt 0:07:51]} Qe7 {[%emt 0:10:02]} 22. g4 {[%emt 0:00:57]} Rc6 23. gxh5 {[%emt 0:05:31]} Rxh5 {[%emt 0:00:34]} 24. Nf5 {[%emt 0:00:25]} Rxf5 {[%emt 0:01:20]} 25. exf5 {[%emt 0:00:05]} e4 26. Qf4 Nc4 {[%emt 0:02:09]} 27. fxg6 {[%emt 0:02:19]} Nxb2 {[%emt 0:00:33]} 28. gxf7+ Kd8 {[%emt 0:01:23]} 29. Rdg1 {[%emt 0:01:01]} Na4 30. Bxa4 {[%emt 0:02:36]} 1-0

[Event "elllobregat Open-A 2019"]
[Site "El Prat de Llobregat"]
[Date "2019.12.08"]
[Round "6.6"]
[White "Bartel, Mateusz"]
[Black "Movsziszian, Karen"]
[Result "1-0"]
[ECO "B06"]
[WhiteElo "2634"]
[BlackElo "2476"]
[Annotator "ChessBase"]
[PlyCount "51"]
[EventDate "2019.12.03"]
[EventType "swiss"]
[EventCountry "ESP"]
[SourceTitle "playchess.com"]
[Source "ChessBase"]
[SourceQuality "1"]
[TimeControl "40/5400+30:1800+30"]

1. e4 g6 {[%emt 0:00:00]} 2. d4 {[%emt 0:00:00]} Bg7 {[%emt 0:00:00]} 3. Nc3 {[%emt 0:00:00]} d6 4. Be3 a6 {[%emt 0:01:15]} 5. Qd2 {[%emt 0:12:21]} Nd7 {[%emt 0:01:23]} 6. h4 {[%emt 0:01:28]} h5 {[%emt 0:00:45]} 7. Nh3 Ngf6 {[%emt 0:02:40]} 8. f3 {[%emt 0:00:55]} b5 {[%emt 0:00:38]} 9. a4 {[%emt 0:10:49]} b4 {[%emt 0:00:59]} 10. Ne2 c5 11. dxc5 {[%emt 0:31:22]} Nxc5 {[%emt 0:22:52]} 12. Qxb4 {[%emt 0:00:03]} Bxh3 {[%emt 0:00:37]} 13. Rxh3 {[%emt 0:00:03]} Rb8 14. Qd2 Nfd7 {[%emt 0:15:32]} 15. Bd4 {[%emt 0:02:27]} Bxd4 {[%emt 0:00:37]} 16. Nxd4 {[%emt 0:01:25]} Qb6 {[%emt 0:15:05]} 17. b3 Nf6 {[%emt 0:01:42]} 18. a5 {[%emt 0:04:36]} Qb7 19. Bc4 e6 {[%emt 0:01:37]} 20. Rd1 {[%emt 0:02:26]} O-O 21. Qf4 Kg7 {[%emt 0:09:44]} 22. Qxd6 {[%emt 0:06:40]} Qb4+ 23. Ke2 {[%emt 0:01:54]} Rfd8 {[%emt 0:02:01]} 24. Qe5 {[%emt 0:00:17]} Na4 {[%emt 0:00:54]} 25. Nxe6+ {[%emt 0:00:48]} fxe6 {[%emt 0:00:29]} 26. Qc7+ 1-0

[Event "elllobregat Open-A 2019"]
[Site "El Prat de Llobregat"]
[Date "2019.12.08"]
[Round "6.8"]
[White "Sosa, Tomas"]
[Black "Kobo, Ori"]
[Result "1/2-1/2"]
[ECO "B40"]
[WhiteElo "2520"]
[BlackElo "2457"]
[Annotator "ChessBase"]
[PlyCount "62"]
[EventDate "2019.12.03"]
[EventType "swiss"]
[EventCountry "ESP"]
[SourceTitle "playchess.com"]
[Source "ChessBase"]
[SourceQuality "1"]
[TimeControl "40/5400+30:1800+30"]

1. e4 {[%emt 0:00:00]} c5 {[%emt 0:00:00]} 2. Nf3 {[%emt 0:01:01]} e6 {[%emt 0:00:00]} 3. c3 {[%emt 0:04:46]} Nf6 {[%emt 0:00:16]} 4. e5 {[%emt 0:00:05]} Nd5 {[%emt 0:00:09]} 5. g3 {[%emt 0:00:10]} Nc6 {[%emt 0:01:33]} 6. Bg2 {[%emt 0:03:00]} d6 {[%emt 0:01:29]} 7. exd6 {[%emt 0:00:13]} Bxd6 {[%emt 0:00:09]} 8. O-O {[%emt 0:01:18]} O-O {[%emt 0:00:43]} 9. d4 {[%emt 0:00:16]} cxd4 {[%emt 0:15:27]} 10. Nxd4 {[%emt 0:00:27]} Bd7 {[%emt 0:00:28]} 11. Nxe6 {[%emt 0:15:16]} fxe6 {[%emt 0:03:12]} 12. c4 {[%emt 0:06:23]} Nf4 {[%emt 0:00:11]} 13. gxf4 {[%emt 0:00:57]} Bxf4 {[%emt 0:01:46]} 14. Nc3 {[%emt 0:04:29]} Ne5 {[%emt 0:11:40]} 15. Qh5 {[%emt 0:10:38]} Bxc1 {[%emt 0:10:45]} 16. Raxc1 {[%emt 0:00:53]} Rf5 {[%emt 0:00:12]} 17. Qe2 {[%emt 0:08:44]} Qh4 {[%emt 0:17:37]} 18. f4 {[%emt 0:04:56]} Ng4 {[%emt 0:08:24]} 19. Bxb7 {[%emt 0:09:17]} Raf8 {[%emt 0:00:20]} 20. Rcd1 {[%emt 0:00:28]} Be8 {[%emt 0:01:37]} 21. Rd2 {[%emt 0:00:43]} e5 {[%emt 0:04:45]} 22. Bc8 {[%emt 0:12:25]} Rxf4 {[%emt 0:00:10]} 23. Be6+ {[%emt 0:00:13]} Kh8 {[%emt 0:00:08]} 24. Rxf4 {[%emt 0:00:22]} Rxf4 {[%emt 0:00:04]} 25. Nd5 {[%emt 0:00:27]} Rf2 {[%emt 0:04:08]} 26. Qxf2 {[%emt 0:00:07]} Nxf2 {[%emt 0:00:04]} 27. Rxf2 {[%emt 0:00:05]} Qg5+ {[%emt 0:06:44]} 28. Kf1 {[%emt 0:01:29]} Qc1+ {[%emt 0:00:18]} 29. Kg2 {[%emt 0:00:05]} Qg5+ {[%emt 0:05:00]} 30. Kf1 {[%emt 0:00:23]} Qc1+ {[%emt 0:00:04]} 31. Kg2 {[%emt 0:00:03]} Qg5+ {[%emt 0:03:33]} 1/2-1/2

[Event "elllobregat Open-A 2019"]
[Site "El Prat de Llobregat"]
[Date "2019.12.08"]
[Round "6.10"]
[White "Arizmendi Martinez, Julen Luis"]
[Black "Kjartansson, Gudmundur"]
[Result "0-1"]
[ECO "D47"]
[WhiteElo "2511"]
[BlackElo "2448"]
[Annotator "ChessBase"]
[PlyCount "76"]
[EventDate "2019.12.03"]
[EventType "swiss"]
[EventCountry "ESP"]
[SourceTitle "playchess.com"]
[Source "ChessBase"]
[SourceQuality "1"]
[TimeControl "40/5400+30:1800+30"]

1. d4 d5 {[%emt 0:00:00]} 2. c4 {[%emt 0:03:20]} e6 {[%emt 0:00:00]} 3. Nf3 Nf6 {[%emt 0:00:12]} 4. Nc3 {[%emt 0:01:06]} c6 {[%emt 0:01:04]} 5. e3 {[%emt 0:00:22]} Nbd7 {[%emt 0:00:21]} 6. Bd3 {[%emt 0:00:27]} dxc4 {[%emt 0:00:08]} 7. Bxc4 {[%emt 0:00:05]} b5 {[%emt 0:00:03]} 8. Bd3 {[%emt 0:00:06]} Bb7 {[%emt 0:02:19]} 9. e4 {[%emt 0:05:58]} b4 {[%emt 0:01:40]} 10. Na4 {[%emt 0:04:25]} c5 {[%emt 0:00:38]} 11. e5 {[%emt 0:00:09]} Nd5 {[%emt 0:00:51]} 12. O-O {[%emt 0:00:11]} cxd4 {[%emt 0:06:28]} 13. Re1 {[%emt 0:00:27]} Be7 {[%emt 0:01:07]} 14. Nxd4 {[%emt 0:05:46]} O-O {[%emt 0:20:59]} 15. Qg4 {[%emt 0:23:18]} Re8 {[%emt 0:04:52]} 16. Bb5 {[%emt 0:25:55]} Kh8 {[%emt 0:38:33]} 17. Nc6 {[%emt 0:06:23]} Qc7 {[%emt 0:00:31]} 18. Nxe7 {[%emt 0:03:25]} Rxe7 {[%emt 0:00:21]} 19. Qe2 {[%emt 0:04:41]} a6 {[%emt 0:01:33]} 20. Bxd7 {[%emt 0:08:41]} Rxd7 {[%emt 0:00:04]} 21. Qg4 {[%emt 0:01:05]} Qc6 {[%emt 0:05:55]} 22. b3 {[%emt 0:00:07]} Nc3 {[%emt 0:02:19]} 23. Be3 {[%emt 0:01:13]} Nxa4 {[%emt 0:00:28]} 24. bxa4 a5 {[%emt 0:04:55]} 25. Rec1 {[%emt 0:01:14]} Qxa4 {[%emt 0:00:29]} 26. a3 {[%emt 0:00:26]} Rc8 {[%emt 0:03:08]} 27. Rcb1 {[%emt 0:03:33]} Qb5 {[%emt 0:01:45]} 28. axb4 {[%emt 0:00:05]} a4 {[%emt 0:00:53]} 29. Bc5 {[%emt 0:00:31]} Bd5 {[%emt 0:00:47]} 30. Rd1 {[%emt 0:00:37]} Bb3 {[%emt 0:00:50]} 31. Rd6 {[%emt 0:00:13]} Rb7 {[%emt 0:00:56]} 32. h3 {[%emt 0:01:11]} h6 {[%emt 0:00:51]} 33. Qd4 {[%emt 0:00:54]} Bd5 {[%emt 0:00:21]} 34. Ra3 {[%emt 0:00:13]} Bb3 {[%emt 0:00:18]} 35. Qe4 {[%emt 0:00:29]} Rbb8 {[%emt 0:01:08]} 36. Qf3 {[%emt 0:00:49]} Rxc5 {[%emt 0:00:39]} 37. bxc5 {[%emt 0:00:08]} Qxc5 {[%emt 0:00:05]} 38. Rxb3 axb3 {[%emt 0:00:20]} 0-1

[Event "elllobregat Open-A 2019"]
[Site "El Prat de Llobregat"]
[Date "2019.12.08"]
[Round "6.12"]
[White "Girish, A. Koushik"]
[Black "Bryakin, Mikhail"]
[Result "1/2-1/2"]
[ECO "A06"]
[WhiteElo "2506"]
[BlackElo "2428"]
[Annotator "ChessBase"]
[PlyCount "74"]
[EventDate "2019.12.03"]
[EventType "swiss"]
[EventCountry "ESP"]
[SourceTitle "playchess.com"]
[Source "ChessBase"]
[SourceQuality "1"]
[TimeControl "40/5400+30:1800+30"]

1. Nf3 {[%emt 0:00:04]} d5 {[%emt 0:00:00]} 2. c4 {[%emt 0:00:10]} c6 {[%emt 0:00:00]} 3. e3 {[%emt 0:00:16]} Nf6 {[%emt 0:00:02]} 4. Nc3 {[%emt 0:00:10]} a6 {[%emt 0:01:56]} 5. a4 {[%emt 0:02:17]} a5 {[%emt 0:03:07]} 6. cxd5 {[%emt 0:04:08]} cxd5 {[%emt 0:01:21]} 7. Bb5+ {[%emt 0:00:13]} Nc6 {[%emt 0:00:58]} 8. Ne5 {[%emt 0:03:53]} Bd7 {[%emt 0:01:28]} 9. Nxd7 {[%emt 0:00:44]} Qxd7 {[%emt 0:00:31]} 10. O-O {[%emt 0:00:27]} e6 {[%emt 0:01:28]} 11. d4 {[%emt 0:05:13]} Bb4 {[%emt 0:01:22]} 12. Na2 {[%emt 0:06:20]} Bd6 {[%emt 0:01:32]} 13. Bd2 {[%emt 0:01:08]} O-O {[%emt 0:00:40]} 14. Nc1 {[%emt 0:05:57]} Qc7 {[%emt 0:02:42]} 15. h3 {[%emt 0:02:52]} Qb6 {[%emt 0:02:01]} 16. Nb3 {[%emt 0:02:22]} Rfc8 {[%emt 0:03:01]} 17. Qe2 {[%emt 0:02:48]} Ne4 {[%emt 0:02:22]} 18. Rfc1 {[%emt 0:12:14]} Nxd2 {[%emt 0:01:24]} 19. Qxd2 {[%emt 0:01:20]} Bb4 {[%emt 0:01:18]} 20. Qd1 {[%emt 0:04:08]} Ne7 {[%emt 0:03:49]} 21. Rxc8+ {[%emt 0:00:36]} Rxc8 {[%emt 0:00:13]} 22. Rc1 {[%emt 0:00:07]} g6 {[%emt 0:02:51]} 23. Rc2 {[%emt 0:01:30]} Rxc2 {[%emt 0:00:54]} 24. Qxc2 {[%emt 0:00:06]} Qd8 {[%emt 0:00:20]} 25. Nc1 {[%emt 0:02:11]} Qc8 {[%emt 0:03:08]} 26. Qd1 Bd6 {[%emt 0:00:52]} 27. Nd3 {[%emt 0:00:45]} b6 {[%emt 0:00:51]} 28. Qd2 {[%emt 0:00:41]} Qc7 {[%emt 0:00:46]} 29. b4 {[%emt 0:02:06]} axb4 {[%emt 0:00:48]} 30. Nxb4 {[%emt 0:00:07]} Bxb4 {[%emt 0:00:47]} 31. Qxb4 {[%emt 0:00:04]} Nf5 {[%emt 0:00:23]} 32. Bd3 {[%emt 0:01:57]} Nd6 {[%emt 0:00:46]} 33. g3 {[%emt 0:01:25]} Qc1+ {[%emt 0:00:15]} 34. Kg2 {[%emt 0:00:04]} Qc7 {[%emt 0:00:06]} 35. Kg1 {[%emt 0:00:07]} Qc1+ {[%emt 0:00:07]} 36. Kg2 {[%emt 0:00:04]} Qc7 {[%emt 0:00:07]} 37. Kg1 {[%emt 0:00:04]} Qc1+ {[%emt 0:00:08]} 1/2-1/2

[Event "elllobregat Open-A 2019"]
[Site "El Prat de Llobregat"]
[Date "2019.12.08"]
[Round "6.13"]
[White "Iniyan, P."]
[Black "Jerez Perez, Alfonso"]
[Result "1-0"]
[ECO "D70"]
[WhiteElo "2497"]
[BlackElo "2369"]
[Annotator "ChessBase"]
[PlyCount "79"]
[EventDate "2019.12.03"]
[EventType "swiss"]
[EventCountry "ESP"]
[SourceTitle "playchess.com"]
[Source "ChessBase"]
[SourceQuality "1"]
[TimeControl "40/5400+30:1800+30"]

1. d4 {[%emt 0:00:00]} Nf6 {[%emt 0:02:26]} 2. c4 {[%emt 0:00:00]} g6 {[%emt 0:00:14]} 3. f3 {[%emt 0:00:00]} d5 {[%emt 0:02:12]} 4. cxd5 {[%emt 0:00:00]} Nxd5 {[%emt 0:00:04]} 5. e4 {[%emt 0:00:06]} Nb6 {[%emt 0:00:04]} 6. Nc3 {[%emt 0:00:08]} Bg7 {[%emt 0:00:27]} 7. Be3 {[%emt 0:00:05]} O-O {[%emt 0:00:13]} 8. Qd2 {[%emt 0:00:02]} e5 {[%emt 0:00:34]} 9. d5 c6 {[%emt 0:00:20]} 10. h4 {[%emt 0:00:08]} cxd5 {[%emt 0:00:59]} 11. exd5 {[%emt 0:06:27]} N8d7 {[%emt 0:00:20]} 12. h5 Nf6 13. hxg6 {[%emt 0:00:13]} fxg6 {[%emt 0:00:23]} 14. O-O-O {[%emt 0:00:05]} Bd7 {[%emt 0:00:15]} 15. Kb1 {[%emt 0:00:10]} Rc8 {[%emt 0:00:20]} 16. Ka1 {[%emt 0:01:11]} Na4 {[%emt 0:00:48]} 17. Nge2 {[%emt 0:18:26]} e4 {[%emt 0:07:07]} 18. Bd4 {[%emt 0:02:38]} exf3 19. gxf3 {[%emt 0:00:01]} Qa5 {[%emt 0:11:32]} 20. Nxa4 {[%emt 0:01:05]} Qxd2 {[%emt 0:05:59]} 21. Rxd2 {[%emt 0:00:11]} Bxa4 {[%emt 0:00:04]} 22. Bh3 {[%emt 0:00:25]} Rcd8 {[%emt 0:01:20]} 23. Nf4 {[%emt 0:04:00]} Bd7 {[%emt 0:03:22]} 24. Be6+ {[%emt 0:00:02]} Bxe6 {[%emt 0:00:16]} 25. Nxe6 {[%emt 0:00:08]} Rxd5 {[%emt 0:02:02]} 26. Nxf8 {[%emt 0:00:12]} Bxf8 {[%emt 0:00:48]} 27. Rhd1 {[%emt 0:01:35]} Rf5 {[%emt 0:00:22]} 28. Bxa7 {[%emt 0:00:16]} Rxf3 {[%emt 0:00:28]} 29. Rd8 {[%emt 0:00:04]} h5 {[%emt 0:01:11]} 30. Rb8 h4 {[%emt 0:01:55]} 31. Rxb7 {[%emt 0:08:47]} h3 32. a4 {[%emt 0:10:25]} Rf4 {[%emt 0:08:22]} 33. b3 {[%emt 0:00:42]} h2 {[%emt 0:10:28]} 34. Rh1 {[%emt 0:01:19]} Ng4 {[%emt 0:16:21]} 35. a5 {[%emt 0:00:12]} Bg7+ 36. Kb1 {[%emt 0:02:55]} Re4 {[%emt 0:00:47]} 37. a6 Re2 {[%emt 0:00:14]} 38. Rxg7+ {[%emt 0:00:32]} Kxg7 {[%emt 0:00:06]} 39. Bd4+ {[%emt 0:00:06]} Kf7 {[%emt 0:00:08]} 40. Rf1+ {[%emt 0:00:00]} 1-0

[Event "elllobregat Open-A 2019"]
[Site "El Prat de Llobregat"]
[Date "2019.12.08"]
[Round "6.14"]
[White "Erenberg, Ariel"]
[Black "Low, Zhen Yu Cyrus"]
[Result "1/2-1/2"]
[ECO "A15"]
[WhiteElo "2479"]
[BlackElo "2420"]
[Annotator "ChessBase"]
[PlyCount "38"]
[EventDate "2019.12.03"]
[EventType "swiss"]
[EventCountry "ESP"]
[SourceTitle "playchess.com"]
[Source "ChessBase"]
[SourceQuality "1"]
[TimeControl "40/5400+30:1800+30"]

1. c4 {[%emt 0:00:00]} Nf6 {[%emt 0:00:10]} 2. Nf3 {[%emt 0:00:44]} g6 {[%emt 0:00:07]} 3. Nc3 {[%emt 0:00:06]} d5 {[%emt 0:00:11]} 4. cxd5 Nxd5 {[%emt 0:00:06]} 5. Qb3 {[%emt 0:00:06]} Nb6 {[%emt 0:00:10]} 6. d4 {[%emt 0:00:20]} Bg7 {[%emt 0:00:07]} 7. Bf4 {[%emt 0:00:24]} Be6 {[%emt 0:00:11]} 8. Qa3 {[%emt 0:00:04]} Nc6 {[%emt 0:00:12]} 9. e3 {[%emt 0:00:26]} a5 {[%emt 0:00:05]} 10. Bb5 {[%emt 0:02:52]} O-O {[%emt 0:00:08]} 11. Bxc6 {[%emt 0:00:05]} bxc6 {[%emt 0:00:05]} 12. O-O {[%emt 0:10:21]} Nc4 {[%emt 0:01:10]} 13. Qc5 {[%emt 0:01:06]} Nxb2 {[%emt 0:00:07]} 14. Qxc6 {[%emt 0:01:24]} Nd3 {[%emt 0:00:07]} 15. Bg3 {[%emt 0:08:12]} Nb4 {[%emt 0:00:30]} 16. Qc5 {[%emt 0:03:19]} Na6 {[%emt 0:01:40]} 17. Qc6 {[%emt 0:09:26]} Nb4 {[%emt 0:16:18]} 18. Qc5 {[%emt 0:00:32]} Na6 {[%emt 0:01:31]} 19. Qc6 {[%emt 0:05:36]} Nb4 {[%emt 0:00:10]} 1/2-1/2

[Event "elllobregat Open-A 2019"]
[Site "El Prat de Llobregat"]
[Date "2019.12.08"]
[Round "6.15"]
[White "Perez Mitjans, Orelvis"]
[Black "Rathanvel, V S"]
[Result "1/2-1/2"]
[ECO "B51"]
[WhiteElo "2412"]
[BlackElo "2410"]
[Annotator "NA"]
[PlyCount "46"]
[EventDate "2019.12.03"]
[EventType "swiss"]
[EventCountry "ESP"]
[SourceTitle "playchess.com"]
[Source "ChessBase"]
[SourceQuality "1"]
[TimeControl "40/5400+30:1800+30"]

1. e4 {[%emt 0:00:00]} c5 2. Nf3 {[%emt 0:00:00]} d6 {[%emt 0:00:00]} 3. Bb5+ {[%emt 0:00:00]} Nd7 {[%emt 0:00:02]} 4. d4 cxd4 {[%emt 0:00:07]} 5. Qxd4 {[%emt 0:00:04]} a6 {[%emt 0:00:36]} 6. Bxd7+ {[%emt 0:00:09]} Bxd7 {[%emt 0:00:28]} 7. Nc3 {[%emt 0:00:11]} e5 {[%emt 0:03:07]} 8. Qd3 {[%emt 0:00:03]} h6 {[%emt 0:00:51]} 9. Nd2 {[%emt 0:01:33]} Rc8 {[%emt 0:03:44]} 10. O-O {[%emt 0:00:41]} Qc7 {[%emt 0:04:49]} 11. a4 {[%emt 0:00:42]} Nf6 {[%emt 0:00:51]} 12. Rd1 {[%emt 0:00:12]} Bg4 {[%emt 0:02:43]} 13. f3 {[%emt 0:00:17]} Be6 {[%emt 0:00:02]} 14. Nf1 {[%emt 0:00:17]} Be7 {[%emt 0:00:11]} 15. Ne3 {[%emt 0:00:17]} O-O {[%emt 0:00:32]} 16. Bd2 {[%emt 0:02:29]} Rfd8 {[%emt 0:04:20]} 17. Kh1 {[%emt 0:03:11]} d5 {[%emt 0:23:32]} 18. exd5 {[%emt 0:16:03]} Bb4 {[%emt 0:04:35]} 19. Qe2 {[%emt 0:12:03]} Bxc3 {[%emt 0:00:19]} 20. Bxc3 {[%emt 0:00:08]} Nxd5 {[%emt 0:00:54]} 21. Nxd5 {[%emt 0:00:15]} Rxd5 {[%emt 0:14:10]} 22. Rxd5 {[%emt 0:01:20]} Bxd5 {[%emt 0:00:02]} 23. Rd1 {[%emt 0:03:44]} Bc6 {[%emt 0:00:50]} 1/2-1/2